fUSD/lending_fUSD_20250222
["ID","MTS","AMOUNT","RATE_DAILY","PERIOD"]
[354067988,1740221434642,-500.0,0.00010958,2]
[354067990,1740221434651,-511.15880797,0.00010958,2]
[354067991,1740221434660,-500.0,0.00010958,2]
[354067993,1740221434670,-500.0,0.00010958,2]
[354067995,1740221434683,-501.19512057,0.00010958,2]
[354067997,1740221434693,-508.511574,0.00010958,2]
[354067998,1740221434702,-501.94827066,0.00010958,2]
[354068000,1740221434711,-500.0,0.00010958,2]
[354068002,1740221434722,-631.39717419,0.00010958,2]
[354068004,1740221434731,-500.0,0.00010958,2]
[354068006,1740221434740,-619.59589485,0.00010958,2]
[354068008,1740221434749,-500.0,0.00010958,2]
[354068009,1740221434759,-507.79903579,0.00010958,2]
[354068011,1740221434768,-500.0,0.00010958,2]
[354068013,1740221434777,-508.05470757,0.00010958,2]
[354068014,1740221434786,-501.98360584,0.00010958,2]
[354068016,1740221434796,-500.0,0.00010958,2]
[354068018,1740221434805,-500.0,0.00010958,2]
[354068020,1740221434814,-507.56993675,0.00010958,2]
[354068022,1740221434824,-500.0,0.00010958,2]
[354068023,1740221434833,-506.54600422,0.00010958,2]
[354068025,1740221434844,-500.0,0.00010958,2]
[354068027,1740221434854,-500.0,0.00010958,2]
[354068029,1740221434864,-464.18382186,0.00010958,2]
[354068031,1740221434873,-514.1514542,0.00010958,2]
[354068033,1740221434883,-500.0,0.00010958,2]
[354068035,1740221434892,-500.0,0.00010958,2]
[354068037,1740221434901,-500.0,0.00010958,2]
[354068038,1740221434910,-503.60222037,0.00010958,2]
[354068040,1740221434919,-500.58570881,0.00010958,2]
[354068042,1740221434929,-500.0,0.00010958,2]
[354068044,1740221434938,-500.0,0.00010958,2]
[354068046,1740221434947,-500.0,0.00010958,2]
[354068048,1740221434956,-500.0,0.00010958,2]
[354068049,1740221434965,-509.13811249,0.00010958,2]
[354068051,1740221434974,-501.3303505,0.00010958,2]
[354068053,1740221434983,-508.87353673,0.00010958,2]
[354068055,1740221434993,-507.73505819,0.00010958,2]
[354068056,1740221435002,-500.0,0.00010958,2]
[354068058,1740221435011,-506.07446001,0.00010958,2]
[354068060,1740221435020,-505.88184982,0.00010958,2]
[354068062,1740221435028,-511.31389039,0.00010958,2]
[354068064,1740221435037,-502.7603808,0.00010958,2]
[354068066,1740221435046,-502.70869344,0.00010958,2]
[354068067,1740221435055,-514.37019993,0.00010958,2]
[354068069,1740221435064,-500.51654388,0.00010958,2]
[354068071,1740221435075,-500.0,0.00010958,2]
[354068073,1740221435085,-506.0900091,0.00010958,2]
[354068075,1740221435094,-500.0,0.00010958,2]
[354068076,1740221435103,-500.0,0.00010958,2]
[354068078,1740221435113,-276.20221079,0.00010958,2]
[354068080,1740221435122,-508.15518433,0.00010958,2]
[354068082,1740221435132,-502.80541607,0.00010958,2]
[354068084,1740221435141,-500.0,0.00010958,2]
[354068085,1740221435150,-500.0,0.00010958,2]
[354068087,1740221435160,-505.75327532,0.00010958,2]
[354068089,1740221435169,-506.2141299,0.00010958,2]
[354068091,1740221435178,-510.41706717,0.00010958,2]
[354068093,1740221435187,-500.83789543,0.00010958,2]
[354068095,1740221435197,-515.19130749,0.00010958,2]
[354068097,1740221435207,-500.0,0.00010958,2]
[354068098,1740221435216,-503.01411335,0.00010958,2]
[354068100,1740221435225,-500.0,0.00010958,2]
[354068102,1740221435234,-500.0,0.00010958,2]
[354068104,1740221435243,-500.0,0.00010958,2]
[354068106,1740221435252,-500.0,0.00010958,2]
[354068107,1740221435261,-500.0,0.00010958,2]
[354068109,1740221435270,-500.0,0.00010958,2]
[354068111,1740221435279,-500.0,0.00010958,2]
[354068113,1740221435288,-500.0,0.00010958,2]
[354068115,1740221435297,-500.0,0.00010958,2]
[354068116,1740221435306,-500.0,0.00010958,2]
[354068118,1740221435315,-500.0,0.00010958,2]
[354068120,1740221435325,-510.20683939,0.00010958,2]
[354068122,1740221435334,-500.0,0.00010958,2]
[354068124,1740221435343,-500.0,0.00010958,2]
[354068126,1740221435353,-500.0,0.00010958,2]
[354068127,1740221435362,-510.1563404,0.00010958,2]
[354068129,1740221435371,-501.69723474,0.00010958,2]
[354068131,1740221435380,-500.0,0.00010958,2]
[354068132,1740221435389,-503.29403165,0.00010958,2]
[354068133,1740221435398,-500.0,0.00010958,2]
[354068134,1740221435407,-500.0,0.00010958,2]
[354068135,1740221435418,-503.52053286,0.00010958,2]
[354068136,1740221435427,-500.0,0.00010958,2]
[354068137,1740221435437,-500.0,0.00010958,2]
[354068138,1740221435446,-500.0,0.00010958,2]
[354068139,1740221435456,-504.55202756,0.00010958,2]
[354068140,1740221435466,-500.0,0.00010958,2]
[354068141,1740221435475,-245.0449951,0.00010958,2]
[354068142,1740221435485,-500.0,0.00010958,2]
[354068143,1740221435495,-500.0,0.00010958,2]
[354068144,1740221435504,-503.13552751,0.00010958,2]
[354068145,1740221435513,-507.93608563,0.00010958,2]
[354068147,1740221435523,-500.0,0.00010958,2]
[354068149,1740221435532,-505.36887644,0.00010958,2]
[354068151,1740221435542,-500.0,0.00010958,2]
[354068153,1740221435551,-500.0,0.00010958,2]
[354068155,1740221435560,-500.0,0.00010958,2]
[354068157,1740221435569,-500.0,0.00010958,2]
[354068159,1740221435579,-500.0,0.00010958,2]
[354068161,1740221435588,-503.11358284,0.00010958,2]
[354068163,1740221435597,-522.13940676,0.00010958,2]
[354068165,1740221435606,-500.0,0.00010958,2]
[354068167,1740221435616,-503.12432551,0.00010958,2]
[354068169,1740221435626,-507.00959492,0.00010958,2]
[354068171,1740221435635,-500.0,0.00010958,2]
[354068173,1740221435644,-500.0,0.00010958,2]
[354068175,1740221435653,-502.72066562,0.00010958,2]
[354068177,1740221435662,-500.0,0.00010958,2]
[354068179,1740221435673,-172.03361463,0.00010958,2]
[354068181,1740221435684,-504.40127982,0.00010958,2]
[354068183,1740221435693,-500.0,0.00010958,2]
[354068185,1740221435702,-500.0,0.00010958,2]
[354068187,1740221435711,-508.66188972,0.00010958,2]
[354068189,1740221435723,-500.0,0.00010958,2]
[354068191,1740221435732,-500.0,0.00010958,2]
[354068193,1740221435741,-500.0,0.00010958,2]
[354068195,1740221435750,-502.21653017,0.00010958,2]
[354068197,1740221435759,-503.74329977,0.00010958,2]
[354068199,1740221435768,-500.0,0.00010958,2]
[354068201,1740221435777,-500.0,0.00010958,2]
[354068203,1740221435786,-500.0,0.00010958,2]
[354068205,1740221435796,-500.0,0.00010958,2]
[354068207,1740221435805,-500.0,0.00010958,2]
[354068209,1740221435814,-500.0,0.00010958,2]
[354068211,1740221435825,-500.0,0.00010958,2]
[354068213,1740221435835,-502.66282773,0.00010958,2]
[354068215,1740221435844,-450.0,0.00010958,2]
[354068217,1740221435853,-500.0,0.00010958,2]
[354068219,1740221435863,-500.0,0.00010958,2]
[354068221,1740221435872,-500.0,0.00010958,2]
[354068224,1740221435882,-508.2519237,0.00010958,2]
[354068226,1740221435892,-399.77735036,0.00010958,2]
[354068228,1740221435902,-504.32607023,0.00010958,2]
[354068230,1740221435911,-500.0,0.00010958,2]
[354068232,1740221435921,-500.0,0.00010958,2]
[354068233,1740221435931,-507.47825259,0.00010958,2]
[354068235,1740221435940,-500.0,0.00010958,2]
[354068237,1740221435949,-510.77495939,0.00010958,2]
[354068239,1740221435959,-500.0,0.00010958,2]
[354068241,1740221435968,-500.0,0.00010958,2]
[354068243,1740221435978,-506.39849045,0.00010958,2]
[354068245,1740221435987,-510.29470148,0.00010958,2]
[354068247,1740221435996,-521.34150121,0.00010958,2]
[354068249,1740221436005,-500.0,0.00010958,2]
[354068251,1740221436015,-500.0,0.00010958,2]
[354068253,1740221436023,-500.0,0.00010958,2]
[354068255,1740221436033,-502.30971045,0.00010958,2]
[354068257,1740221436042,-500.0,0.00010958,2]
[354068259,1740221436051,-500.0,0.00010958,2]
[354068261,1740221436060,-494.0,0.00010958,2]
[354068263,1740221436071,-500.0,0.00010958,2]
[354068265,1740221436081,-450.0,0.00010958,2]
[354068267,1740221436090,-500.02038116,0.00010958,2]
[354068269,1740221436099,-500.0,0.00010958,2]
[354068271,1740221436109,-496.29028339,0.00010958,2]
[354068273,1740221436118,-500.91388849,0.00010958,2]
[354068276,1740221436129,-500.0,0.00010958,2]
[354068278,1740221436138,-500.0,0.00010958,2]
[354068280,1740221436147,-500.0,0.00010958,2]
[354068282,1740221436157,-501.04328219,0.00010958,2]
[354068284,1740221436167,-383.50134125,0.00010958,2]
[354068286,1740221436176,-500.0,0.00010958,2]
[354068288,1740221436185,-501.92936234,0.00010958,2]
[354068290,1740221436194,-507.19488026,0.00010958,2]
[354068292,1740221436205,-500.0,0.00010958,2]
[354068294,1740221436214,-500.0,0.00010958,2]
[354068296,1740221436224,-500.0,0.00010958,2]
[354068298,1740221436234,-500.0,0.00010958,2]
[354068300,1740221436243,-506.05555822,0.00010958,2]
[354068302,1740221436252,-504.772397,0.00010958,2]
[354068304,1740221436261,-503.70491143,0.00010958,2]
[354068306,1740221436271,-500.0,0.00010958,2]
[354068308,1740221436280,-500.0,0.00010958,2]
[354068310,1740221436289,-500.0,0.00010958,2]
[354068312,1740221436299,-503.16482404,0.00010958,2]
[354068313,1740221436309,-500.0,0.00010958,2]
[354068315,1740221436318,-500.79420776,0.00010958,2]
[354068318,1740221436329,-501.13536333,0.00010958,2]
[354068319,1740221436338,-500.0,0.00010958,2]
[354068321,1740221436347,-501.4034182,0.00010958,2]
[354068323,1740221436357,-500.0,0.00010958,2]
[354068325,1740221436366,-504.43315413,0.00010958,2]
[354068327,1740221436375,-500.0,0.00010958,2]
[354068329,1740221436384,-500.0,0.00010958,2]
[354068331,1740221436395,-500.0,0.00010958,2]
[354068333,1740221436405,-500.0,0.00010958,2]
[354068335,1740221436414,-501.18226226,0.00010958,2]
[354068337,1740221436423,-500.0,0.00010958,2]
[354068339,1740221436431,-504.1108308,0.00010958,2]
[354068341,1740221436440,-526.39289842,0.00010958,2]
[354068343,1740221436449,-500.0,0.00010958,2]
[354068345,1740221436458,-512.11597034,0.00010958,2]
[354068347,1740221436467,-504.3163409,0.00010958,2]
[354068349,1740221436476,-508.38102967,0.00010958,2]
[354068351,1740221436485,-500.0,0.00010958,2]
[354068353,1740221436494,-501.3009823,0.00010958,2]
[354068355,1740221436503,-500.0,0.00010958,2]
[354068357,1740221436511,-500.0,0.00010958,2]
[354068359,1740221436520,-500.0,0.00010958,2]
[354068361,1740221436529,-501.00758034,0.00010958,2]
[354068363,1740221436539,-565.03805467,0.00010958,2]
[354068365,1740221436547,-500.0,0.00010958,2]
[354068367,1740221436556,-500.0,0.00010958,2]
[354068369,1740221436565,-500.0,0.00010958,2]
[354068371,1740221436575,-437.33607701,0.00010958,2]
[354068373,1740221436583,-500.0,0.00010958,2]
[354068375,1740221436592,-628.02536808,0.00010958,2]
[354068377,1740221436601,-500.0,0.00010958,2]
[354068379,1740221436610,-504.93055779,0.00010958,2]
[354068381,1740221436619,-500.0,0.00010958,2]
[354068383,1740221436627,-500.0,0.00010958,2]
[354068385,1740221436637,-502.14289904,0.00010958,2]
[354068387,1740221436646,-603.27655712,0.00010958,2]
[354068389,1740221436655,-500.0,0.00010958,2]
[354068391,1740221436664,-504.33505585,0.00010958,2]
[354068393,1740221436678,-500.0,0.00010958,2]
[354068395,1740221436688,-500.0,0.00010958,2]
[354068397,1740221436698,-500.0,0.00010958,2]
[354068399,1740221436707,-512.04975139,0.00010958,2]
[354068401,1740221436716,-500.0,0.00010958,2]
[354068403,1740221436726,-500.0,0.00010958,2]
[354068405,1740221436735,-507.44594165,0.00010958,2]
[354068407,1740221436744,-500.0,0.00010958,2]
[354068409,1740221436754,-503.66117183,0.00010958,2]
[354068411,1740221436763,-500.0,0.00010958,2]
[354068413,1740221436772,-500.0,0.00010958,2]
[354068415,1740221436781,-505.01778064,0.00010958,2]
[354068417,1740221436790,-502.59172889,0.00010958,2]
[354068419,1740221436799,-506.86521748,0.00010958,2]
[354068421,1740221436809,-500.0,0.00010958,2]
[354068423,1740221436818,-504.44858007,0.00010958,2]
[354068425,1740221436828,-500.0,0.00010958,2]
[354068427,1740221436837,-500.0,0.00010958,2]
[354068429,1740221436848,-500.0,0.00010958,2]
[354068431,1740221436857,-505.74474751,0.00010958,2]
[354068433,1740221436866,-505.67682014,0.00010958,2]
[354068435,1740221436875,-500.0,0.00010958,2]
[354068437,1740221436884,-500.0,0.00010958,2]
[354068439,1740221436893,-501.12751027,0.00010958,2]
[354068441,1740221436902,-500.0,0.00010958,2]
[354068443,1740221436911,-500.0,0.00010958,2]
[354068445,1740221436921,-502.05057106,0.00010958,2]
[354068447,1740221436930,-500.0,0.00010958,2]
[354068449,1740221436939,-498.01389925,0.00010958,2]
[354068451,1740221436947,-5012.29268402,0.00010958,2]
[354068453,1740221436957,-302.7656597,0.00010958,2]
[354068455,1740221436969,-500.0,0.00010958,2]
[354068457,1740221436979,-500.0,0.00010958,2]
[354068459,1740221436988,-500.0,0.00010958,2]
[354068461,1740221436997,-502.35018261,0.00010958,2]
[354068463,1740221437006,-501.25304205,0.00010958,2]
[354068465,1740221437016,-500.0,0.00010958,2]
[354068467,1740221437025,-500.0,0.00010958,2]
[354068469,1740221437034,-500.0,0.00010958,2]
[354068471,1740221437044,-500.0,0.00010958,2]
[354068473,1740221437053,-500.0,0.00010958,2]
[354068475,1740221437062,-500.0,0.00010958,2]
[354068477,1740221437070,-503.12886077,0.00010958,2]
[354068479,1740221437079,-535.61307096,0.00010958,2]
[354068481,1740221437088,-504.37839893,0.00010958,2]
[354068483,1740221437097,-500.0,0.00010958,2]
[354068485,1740221437106,-503.87842793,0.00010958,2]
[354068487,1740221437115,-500.0,0.00010958,2]
[354068489,1740221437124,-500.0,0.00010958,2]
[354068491,1740221437133,-501.25291162,0.00010958,2]
[354068493,1740221437143,-507.98583378,0.00010958,2]
[354068495,1740221437152,-500.0,0.00010958,2]
[354068497,1740221437161,-502.47968688,0.00010958,2]
[354068498,1740221437170,-505.60194188,0.00010958,2]
[354068500,1740221437179,-500.0,0.00010958,2]
[354068502,1740221437189,-500.0,0.00010958,2]
[354068504,1740221437197,-543.03688606,0.00010958,2]
[354068506,1740221437207,-500.0,0.00010958,2]
[354068509,1740221437216,-503.77465231,0.00010958,2]
[354068511,1740221437226,-500.0,0.00010958,2]
[354068513,1740221437235,-500.0,0.00010958,2]
[354068514,1740221437245,-505.34939299,0.00010958,2]
[354068540,1740221437408,-503.03477642,0.00010958,2]
[354068543,1740221437418,-502.92062317,0.00010958,2]
[354068546,1740221437428,-500.0,0.00010958,2]
[354068549,1740221437438,-500.0,0.00010958,2]
[354068552,1740221437447,-551.35133817,0.00010958,2]
[354068555,1740221437457,-501.9872762,0.00010958,2]
[354068557,1740221437467,-508.13233241,0.00010958,2]
[354068559,1740221437476,-500.0,0.00010958,2]
[354068561,1740221437486,-504.94844808,0.00010958,2]
[354068563,1740221437495,-629.07043743,0.00010958,2]
[354068565,1740221437505,-503.77680682,0.00010958,2]
[354068567,1740221437514,-500.0,0.00010958,2]
[354068569,1740221437524,-508.30014122,0.00010958,2]
[354068571,1740221437533,-550.91357331,0.00010958,2]
[354068573,1740221437543,-504.8875627,0.00010958,2]
[354068575,1740221437552,-509.5030006,0.00010958,2]
[354068576,1740221437562,-500.0,0.00010958,2]
[354068577,1740221437571,-500.0,0.00010958,2]
[354068578,1740221437581,-500.0,0.00010958,2]
[354068579,1740221437590,-500.0,0.00010958,2]
[354068580,1740221437599,-500.0,0.00010958,2]
[354068581,1740221437609,-513.8687081,0.00010958,2]
[354068582,1740221437618,-490.12930152,0.00010958,2]
[354068583,1740221437628,-525.04552046,0.00010958,2]
[354068584,1740221437637,-500.0,0.00010958,2]
[354068585,1740221437646,-500.0,0.00010958,2]
[354068586,1740221437656,-500.0,0.00010958,2]
[354068587,1740221437665,-593.05456343,0.00010958,2]
[354068588,1740221437676,-500.0,0.00010958,2]
[354068589,1740221437686,-502.09844843,0.00010958,2]
[354068590,1740221437695,-513.97292429,0.00010958,2]
[354068591,1740221437705,-500.0,0.00010958,2]
[354068592,1740221437714,-509.41405277,0.00010958,2]
[354068593,1740221437725,-500.0,0.00010958,2]
[354068595,1740221437735,-500.0,0.00010958,2]
[354068597,1740221437744,-500.0,0.00010958,2]
[354068599,1740221437754,-500.0,0.00010958,2]
[354068601,1740221437763,-500.0,0.00010958,2]
[354068602,1740221437773,-500.0,0.00010958,2]
[354068603,1740221437782,-526.40510179,0.00010958,2]
[354068604,1740221437792,-500.0,0.00010958,2]
[354068605,1740221437801,-421.04271604,0.00010958,2]
[354068606,1740221437810,-506.51006394,0.00010958,2]
[354068607,1740221437821,-506.90245233,0.00010958,2]
[354068608,1740221437830,-500.0,0.00010958,2]
[354068609,1740221437839,-510.87236316,0.00010958,2]
[354068610,1740221437850,-506.63073127,0.00010958,2]
[354068611,1740221437859,-500.0,0.00010958,2]
[354068612,1740221437869,-507.92771038,0.00010958,2]
[354068614,1740221437878,-500.0,0.00010958,2]
[354068616,1740221437887,-500.0,0.00010958,2]
[354068618,1740221437897,-502.13433894,0.00010958,2]
[354068621,1740221437908,-500.0,0.00010958,2]
[354068622,1740221437917,-505.75639746,0.00010958,2]
[354068625,1740221437928,-516.66896701,0.00010958,2]
[354068627,1740221437938,-509.24787029,0.00010958,2]
[354068628,1740221437949,-500.0,0.00010958,2]
[354068629,1740221437959,-510.74702121,0.00010958,2]
[354068630,1740221437968,-502.96187616,0.00010958,2]
[354068631,1740221437978,-500.0,0.00010958,2]
[354068632,1740221437987,-500.0,0.00010958,2]
[354068633,1740221437996,-514.52952452,0.00010958,2]
[354068634,1740221438006,-503.11034389,0.00010958,2]
[354068635,1740221438016,-505.83812217,0.00010958,2]
[354068636,1740221438025,-500.0,0.00010958,2]
[354068637,1740221438035,-500.0,0.00010958,2]
[354068638,1740221438044,-510.28961201,0.00010958,2]
[354068639,1740221438054,-506.46381038,0.00010958,2]
[354068640,1740221438064,-513.46566462,0.00010958,2]
[354068641,1740221438075,-500.0,0.00010958,2]
[354068642,1740221438084,-500.0,0.00010958,2]
[354068643,1740221438094,-405.44522175,0.00010958,2]
[354068644,1740221438104,-502.45588604,0.00010958,2]
[354068645,1740221438114,-518.2695786,0.00010958,2]
[354068646,1740221438123,-500.0,0.00010958,2]
[354068647,1740221438134,-507.43696636,0.00010958,2]
[354068648,1740221438143,-509.78418894,0.00010958,2]
[354068649,1740221438153,-168.89906362,0.00010958,2]
[354068650,1740221438162,-507.74330737,0.00010958,2]
[354068651,1740221438172,-509.62345433,0.00010958,2]
[354068652,1740221438181,-242.69876306,0.00010958,2]
[354068653,1740221438190,-503.04905168,0.00010958,2]
[354068654,1740221438199,-502.78754481,0.00010958,2]
[354068655,1740221438208,-507.15536021,0.00010958,2]
[354068656,1740221438218,-501.83353155,0.00010958,2]
[354068657,1740221438227,-500.0,0.00010958,2]
[354068658,1740221438236,-500.0,0.00010958,2]
[354068659,1740221438245,-511.49779298,0.00010958,2]
[354068660,1740221438254,-500.0,0.00010958,2]
[354068661,1740221438263,-500.0,0.00010958,2]
[354068662,1740221438272,-508.6535871,0.00010958,2]
[354068663,1740221438281,-500.0,0.00010958,2]
[354068664,1740221438290,-500.0,0.00010958,2]
[354068665,1740221438299,-500.0,0.00010958,2]
[354068666,1740221438309,-511.59814837,0.00010958,2]
[354068667,1740221438318,-500.0,0.00010958,2]
[354068668,1740221438327,-500.0,0.00010958,2]
[354068669,1740221438337,-500.0,0.00010958,2]
[354068670,1740221438346,-526.79,0.00010958,2]
[354068671,1740221438355,-509.90389559,0.00010958,2]
[354068672,1740221438365,-507.75795042,0.00010958,2]
[354068673,1740221438374,-326.3527584,0.00010958,2]
[354068674,1740221438383,-511.98817717,0.00010958,2]
[354068675,1740221438393,-500.0,0.00010958,2]
[354068676,1740221438402,-500.0,0.00010958,2]
[354068677,1740221438411,-501.03743236,0.00010958,2]
[354068678,1740221438420,-504.17132136,0.00010958,2]
[354068679,1740221438429,-500.0,0.00010958,2]
[354068680,1740221438438,-500.0,0.00010958,2]
[354068681,1740221438448,-500.0,0.00010958,2]
[354068682,1740221438458,-500.0,0.00010958,2]
[354068683,1740221438467,-505.79433055,0.00010958,2]
[354068684,1740221438476,-500.0,0.00010958,2]
[354068685,1740221438486,-514.06,0.00010958,2]
[354068686,1740221438495,-507.04780862,0.00010958,2]
[354068687,1740221438504,-500.0,0.00010958,2]
[354068688,1740221438513,-579.74534379,0.00010958,2]
[354068689,1740221438523,-500.0,0.00010958,2]
[354068690,1740221438532,-504.41454881,0.00010958,2]
[354068691,1740221438541,-504.34912371,0.00010958,2]
[354068692,1740221438550,-500.0,0.00010958,2]
[354068693,1740221438558,-500.0,0.00010958,2]
[354068694,1740221438567,-500.0,0.00010958,2]
[354068695,1740221438577,-509.56653161,0.00010958,2]
[354068696,1740221438586,-500.0,0.00010958,2]
[354068697,1740221438595,-505.01963286,0.00010958,2]
[354068698,1740221438604,-159.21392179,0.00010958,2]
[354068699,1740221438613,-500.0,0.00010958,2]
[354068700,1740221438622,-500.0,0.00010958,2]
[354068701,1740221438631,-500.0,0.00010958,2]
[354068702,1740221438640,-500.0,0.00010958,2]
[354068703,1740221438649,-500.0,0.00010958,2]
[354068704,1740221438658,-500.0,0.00010958,2]
[354068705,1740221438667,-500.0,0.00010958,2]
[354068706,1740221438679,-500.0,0.00010958,2]
[354068707,1740221438688,-500.0,0.00010958,2]
[354068708,1740221438697,-508.66515681,0.00010958,2]
[354068709,1740221438707,-500.0,0.00010958,2]
[354068710,1740221438716,-500.0,0.00010958,2]
[354068711,1740221438726,-516.57832263,0.00010958,2]
[354068712,1740221438736,-500.0,0.00010958,2]
[354068713,1740221438745,-500.0,0.00010958,2]
[354068714,1740221438756,-507.09854941,0.00010958,2]
[354068715,1740221438765,-500.0,0.00010958,2]
[354068716,1740221438774,-500.0,0.00010958,2]
[354068717,1740221438783,-500.0,0.00010958,2]
[354068718,1740221438792,-500.0,0.00010958,2]
[354068719,1740221438801,-532.35,0.00010958,2]
[354068720,1740221438810,-503.15964518,0.00010958,2]
[354068721,1740221438819,-500.0,0.00010958,2]
[354068722,1740221438829,-506.57699015,0.00010958,2]
[354068723,1740221438838,-606.93599359,0.00010958,2]
[354068724,1740221438847,-500.0,0.00010958,2]
[354068725,1740221438857,-500.0,0.00010958,2]
[354068726,1740221438865,-487.93466253,0.00010958,2]
[354068727,1740221438875,-500.0,0.00010958,2]
[354068728,1740221438884,-500.0,0.00010958,2]
[354068729,1740221438893,-500.0,0.00010958,2]
[354068730,1740221438902,-507.79918973,0.00010958,2]
[354068731,1740221438911,-500.0,0.00010958,2]
[354068732,1740221438920,-506.79138279,0.00010958,2]
[354068733,1740221438929,-506.62022338,0.00010958,2]
[354068734,1740221438938,-507.0650411,0.00010958,2]
[354068735,1740221438947,-500.0,0.00010958,2]
[354068736,1740221438956,-500.0,0.00010958,2]
[354068737,1740221438966,-500.0,0.00010958,2]
[354068738,1740221438976,-500.0,0.00010958,2]
[354068739,1740221438985,-503.42232476,0.00010958,2]
[354068740,1740221438994,-505.70181007,0.00010958,2]
[354068741,1740221439004,-500.0,0.00010958,2]
[354068742,1740221439013,-500.0,0.00010958,2]
[354068743,1740221439022,-500.0,0.00010958,2]
[354068744,1740221439031,-503.72856126,0.00010958,2]
[354068745,1740221439041,-500.0,0.00010958,2]
[354068746,1740221439051,-500.0,0.00010958,2]
[354068747,1740221439060,-511.05379224,0.00010958,2]
[354068748,1740221439069,-502.29155399,0.00010958,2]
[354068749,1740221439079,-500.0,0.00010958,2]
[354068750,1740221439088,-505.48802084,0.00010958,2]
[354068751,1740221439098,-502.46229094,0.00010958,2]
[354068752,1740221439107,-500.0,0.00010958,2]
[354068753,1740221439116,-500.94661196,0.00010958,2]
[354068754,1740221439125,-500.0,0.00010958,2]
[354068755,1740221439134,-501.78630513,0.00010958,2]
[354068756,1740221439144,-500.0,0.00010958,2]
[354068757,1740221439153,-505.93224384,0.00010958,2]
[354068758,1740221439162,-505.86212423,0.00010958,2]
[354068759,1740221439171,-500.0,0.00010958,2]
[354068760,1740221439180,-544.91973153,0.00010958,2]
[354068761,1740221439189,-500.0,0.00010958,2]
[354068762,1740221439199,-500.0,0.00010958,2]
[354068763,1740221439208,-500.0,0.00010958,2]
[354068764,1740221439217,-504.89656931,0.00010958,2]
[354068765,1740221439226,-500.0,0.00010958,2]
[354068766,1740221439235,-581.21,0.00010958,2]
[354068767,1740221439245,-505.91759969,0.00010958,2]
[354068768,1740221439254,-506.53481192,0.00010958,2]
[354068769,1740221439263,-500.0,0.00010958,2]
[354068770,1740221439272,-500.0,0.00010958,2]
[354068771,1740221439281,-500.0,0.00010958,2]
[354068772,1740221439290,-500.0,0.00010958,2]
[354068773,1740221439299,-500.0,0.00010958,2]
[354068774,1740221439308,-500.0,0.00010958,2]
[354068775,1740221439317,-500.0,0.00010958,2]
[354068776,1740221439327,-500.0,0.00010958,2]
[354068777,1740221439337,-500.0,0.00010958,2]
[354068778,1740221439346,-500.0,0.00010958,2]
[354068779,1740221439355,-505.98945521,0.00010958,2]
[354068780,1740221439364,-500.0,0.00010958,2]
[354068781,1740221439373,-500.0,0.00010958,2]
[354068782,1740221439382,-500.0,0.00010958,2]
[354068783,1740221439392,-500.0,0.00010958,2]
[354068784,1740221439401,-500.0,0.00010958,2]
[354068785,1740221439411,-502.74924866,0.00010958,2]
[354068786,1740221439421,-500.0,0.00010958,2]
[354068787,1740221439430,-500.0,0.00010958,2]
[354068788,1740221439440,-478.55456468,0.00010958,2]
[354068789,1740221439449,-499.99999999,0.00010958,2]
[354068790,1740221439459,-500.0,0.00010958,2]
[354068791,1740221439468,-506.13371444,0.00010958,2]
[354068792,1740221439478,-500.0,0.00010958,2]